[Event "Manhem Chess Week-Elo 2019"]
[Site "Moelnlycke"]
[Date "2019.08.10"]
[Round "1.1"]
[White "Fransson, Lennart"]
[Black "Bengtsson, Jonas"]
[Result "0-1"]
[ECO "A34"]
[WhiteElo "2014"]
[BlackElo "2145"]
[Annotator "NA"]
[PlyCount "80"]
[EventDate "2019.08.10"]
[EventType "tourn"]
[EventCountry "SWE"]
[SourceTitle "playchess.com"]
[Source "ChessBase"]
[SourceQuality "1"]
[TimeControl "40/5400+30:1800+30"]

1. c4 {[%emt 0:00:00]} Nf6 {[%emt 0:00:00]} 2. g3 {[%emt 0:00:00]} c5 {[%emt 0:00:00]} 3. Bg2 {[%emt 0:00:00]} d5 {[%emt 0:00:00]} 4. cxd5 {[%emt 0:00:00]} Nxd5 {[%emt 0:00:00]} 5. Nc3 {[%emt 0:00:02]} Nc7 {[%emt 0:00:00]} 6. Nf3 {[%emt 0:00:12]} Nc6 {[%emt 0:00:00]} 7. O-O {[%emt 0:01:03]} e5 {[%emt 0:00:02]} 8. d3 {[%emt 0:07:12]} Be7 {[%emt 0:00:07]} 9. Be3 {[%emt 0:00:29]} Bd7 {[%emt 0:06:11]} 10. Rc1 {[%emt 0:00:39]} O-O {[%emt 0:02:04]} 11. Nd2 {[%emt 0:03:42]} Rc8 {[%emt 0:09:27]} 12. Nc4 {[%emt 0:02:19]} f6 {[%emt 0:00:52]} 13. Qb3 {[%emt 0:10:19]} Kh8 {[%emt 0:00:35]} 14. Qxb7 {[%emt 0:00:08]} Rb8 {[%emt 0:01:36]} 15. Bxc6 {[%emt 0:00:08]} Rxb7 {[%emt 0:00:04]} 16. Bxb7 {[%emt 0:00:08]} Bh3 {[%emt 0:05:17]} 17. Rfe1 {[%emt 0:04:55]} Ne6 {[%emt 0:00:46]} 18. Rcd1 {[%emt 0:06:33]} Nd4 {[%emt 0:02:25]} 19. Rc1 {[%emt 0:05:56]} h5 {[%emt 0:07:04]} 20. Bxd4 {[%emt 0:14:46]} cxd4 {[%emt 0:00:32]} 21. Nb1 {[%emt 0:03:58]} h4 {[%emt 0:03:01]} 22. Nbd2 {[%emt 0:01:13]} Qd7 {[%emt 0:08:40]} 23. Bh1 {[%emt 0:03:11]} Qe6 {[%emt 0:05:15]} 24. Nf3 {[%emt 0:01:45]} g5 {[%emt 0:05:01]} 25. e3 {[%emt 0:02:32]} hxg3 {[%emt 0:05:13]} 26. hxg3 {[%emt 0:00:58]} Bb4 {[%emt 0:07:38]} 27. Re2 {[%emt 0:00:53]} dxe3 {[%emt 0:00:19]} 28. Rxe3 {[%emt 0:00:22]} Rc8 {[%emt 0:01:26]} 29. a3 {[%emt 0:04:25]} Bc5 {[%emt 0:04:24]} 30. Ree1 {[%emt 0:03:05]} Qd7 {[%emt 0:06:19]} 31. Rcd1 {[%emt 0:06:03]} a6 {[%emt 0:08:05]} 32. b3 {[%emt 0:05:13]} Kg7 {[%emt 0:04:37]} 33. Rd2 {[%emt 0:08:10]} Ba7 {[%emt 0:02:30]} 34. d4 {[%emt 0:00:29]} exd4 {[%emt 0:01:01]} 35. Nxd4 {[%emt 0:01:22]} Bxd4 {[%emt 0:00:42]} 36. Re4 {[%emt 0:00:44]} Bxf2+ {[%emt 0:00:58]} 37. Rxf2 {[%emt 0:00:59]} Qd1+ {[%emt 0:01:02]} 38. Kh2 {[%emt 0:00:29]} Rh8 {[%emt 0:01:04]} 39. Re7+ {[%emt 0:02:31]} Kf8 {[%emt 0:01:24]} 40. g4 {[%emt 0:01:02]} Bg2+ {[%emt 0:01:03]} 0-1

[Event "Manhem Chess Week-Elo 2019"]
[Site "Moelnlycke"]
[Date "2019.08.10"]
[Round "1.3"]
[White "Bergenwall, Henric"]
[Black "Moller, Mikael"]
[Result "1-0"]
[ECO "B21"]
[WhiteElo "1933"]
[BlackElo "1957"]
[Annotator "NA"]
[PlyCount "57"]
[EventDate "2019.08.10"]
[EventType "tourn"]
[EventCountry "SWE"]
[SourceTitle "playchess.com"]
[Source "ChessBase"]
[SourceQuality "1"]
[TimeControl "40/5400+30:1800+30"]

1. e4 {[%emt 0:00:00]} c5 {[%emt 0:00:00]} 2. d4 {[%emt 0:00:00]} cxd4 {[%emt 0:00:00]} 3. c3 {[%emt 0:00:00]} dxc3 {[%emt 0:00:17]} 4. Nxc3 {[%emt 0:00:00]} g6 {[%emt 0:01:59]} 5. Nf3 {[%emt 0:00:59]} Bg7 {[%emt 0:00:14]} 6. Bc4 {[%emt 0:00:32]} Qc7 {[%emt 0:03:06]} 7. Qb3 {[%emt 0:02:18]} e6 {[%emt 0:00:57]} 8. Nb5 {[%emt 0:02:28]} Qc6 {[%emt 0:02:14]} 9. O-O {[%emt 0:04:24]} a6 {[%emt 0:02:22]} 10. Nbd4 {[%emt 0:00:39]} Qxe4 {[%emt 0:11:49]} 11. Re1 {[%emt 0:00:49]} Qg4 {[%emt 0:00:15]} 12. h3 {[%emt 0:14:19]} Qh5 {[%emt 0:01:30]} 13. Bf4 {[%emt 0:02:02]} Nc6 {[%emt 0:04:02]} 14. Nxc6 {[%emt 0:04:44]} bxc6 {[%emt 0:00:48]} 15. Bd6 {[%emt 0:00:13]} Ne7 {[%emt 0:07:27]} 16. Rad1 {[%emt 0:04:05]} Bf6 {[%emt 0:03:26]} 17. Qa3 {[%emt 0:01:13]} Rg8 {[%emt 0:17:06]} 18. Ne5 {[%emt 0:15:06]} Qh4 {[%emt 0:04:38]} 19. Ng4 {[%emt 0:01:30]} Nd5 {[%emt 0:08:21]} 20. Bxd5 {[%emt 0:04:52]} cxd5 {[%emt 0:00:08]} 21. g3 {[%emt 0:01:01]} Qg5 {[%emt 0:00:40]} 22. f4 {[%emt 0:00:18]} Qf5 {[%emt 0:01:40]} 23. Nh6 {[%emt 0:00:07]} Qxh3 {[%emt 0:03:01]} 24. Nxg8 {[%emt 0:00:30]} Bg7 {[%emt 0:00:19]} 25. Bf8 {[%emt 0:01:27]} Bxf8 {[%emt 0:01:10]} 26. Nf6+ {[%emt 0:00:03]} Kd8 {[%emt 0:00:23]} 27. Qxf8+ {[%emt 0:00:04]} Kc7 {[%emt 0:00:09]} 28. Rc1+ {[%emt 0:00:40]} Kb7 {[%emt 0:00:14]} 29. Qb4+ {[%emt 0:00:15]} 1-0

[Event "Manhem Chess Week-Elo 2019"]
[Site "Moelnlycke"]
[Date "2019.08.10"]
[Round "1.4"]
[White "Rasti, Arvin"]
[Black "Bergre, Joachim"]
[Result "1-0"]
[ECO "A57"]
[WhiteElo "2220"]
[BlackElo "1928"]
[Annotator "NA"]
[PlyCount "59"]
[EventDate "2019.08.10"]
[EventType "tourn"]
[EventCountry "SWE"]
[SourceTitle "playchess.com"]
[Source "ChessBase"]
[SourceQuality "1"]
[TimeControl "40/5400+30:1800+30"]

1. d4 {[%emt 0:00:00]} Nf6 {[%emt 0:00:00]} 2. c4 {[%emt 0:00:00]} c5 {[%emt 0:00:10]} 3. d5 {[%emt 0:00:10]} b5 {[%emt 0:00:15]} 4. cxb5 {[%emt 0:00:12]} a6 {[%emt 0:00:10]} 5. f3 {[%emt 0:00:43]} e6 {[%emt 0:04:55]} 6. e4 {[%emt 0:00:07]} axb5 {[%emt 0:02:23]} 7. Bxb5 {[%emt 0:08:43]} Qa5+ {[%emt 0:03:49]} 8. Nc3 {[%emt 0:00:07]} Ba6 {[%emt 0:00:16]} 9. Qe2 {[%emt 0:06:11]} Bxb5 {[%emt 0:09:56]} 10. Qxb5 {[%emt 0:00:07]} exd5 {[%emt 0:00:12]} 11. Qxa5 {[%emt 0:00:53]} Rxa5 {[%emt 0:00:08]} 12. exd5 {[%emt 0:06:42]} Na6 {[%emt 0:15:18]} 13. Bg5 {[%emt 0:12:32]} Be7 {[%emt 0:10:39]} 14. O-O-O {[%emt 0:10:38]} O-O {[%emt 0:08:52]} 15. d6 {[%emt 0:07:43]} Bd8 {[%emt 0:01:41]} 16. Nh3 {[%emt 0:03:02]} h6 {[%emt 0:04:51]} 17. Bh4 {[%emt 0:04:01]} Nb4 {[%emt 0:01:21]} 18. Kb1 {[%emt 0:03:57]} Nh7 {[%emt 0:08:42]} 19. Be7 {[%emt 0:03:42]} Re8 {[%emt 0:00:36]} 20. Rhe1 {[%emt 0:00:40]} Nf8 {[%emt 0:00:55]} 21. a3 {[%emt 0:05:44]} Nc6 {[%emt 0:00:48]} 22. Nd5 {[%emt 0:01:46]} Ne6 {[%emt 0:00:31]} 23. Bxd8 {[%emt 0:00:57]} Rxd8 {[%emt 0:08:23]} 24. f4 {[%emt 0:02:28]} Ned4 {[%emt 0:03:42]} 25. Ne7+ {[%emt 0:04:06]} Kh7 {[%emt 0:00:16]} 26. Rd3 {[%emt 0:01:22]} Rda8 {[%emt 0:02:05]} 27. Ng5+ {[%emt 0:01:33]} Kh8 {[%emt 0:00:57]} 28. Nxf7+ {[%emt 0:00:21]} Kh7 {[%emt 0:00:07]} 29. Nxc6 {[%emt 0:01:05]} Nxc6 {[%emt 0:00:30]} 30. Ne5 {[%emt 0:02:18]} 1-0

[Event "Manhem Chess Week-Elo 2019"]
[Site "Moelnlycke"]
[Date "2019.08.10"]
[Round "1.5"]
[White "Degerfeldt, Sven"]
[Black "Peterson, Rolf"]
[Result "1-0"]
[ECO "B07"]
[WhiteElo "1918"]
[BlackElo "1580"]
[Annotator "NA"]
[PlyCount "43"]
[EventDate "2019.08.10"]
[EventType "tourn"]
[EventCountry "SWE"]
[SourceTitle "playchess.com"]
[Source "ChessBase"]
[SourceQuality "1"]
[TimeControl "40/5400+30:1800+30"]

1. d4 {[%emt 0:00:09]} d6 {[%emt 0:00:05]} 2. e4 {[%emt 0:01:13]} Nf6 {[%emt 0:00:22]} 3. Nc3 {[%emt 0:01:50]} c6 {[%emt 0:00:32]} 4. f4 {[%emt 0:01:26]} Qa5 {[%emt 0:01:26]} 5. Bd2 {[%emt 0:00:42]} Bg4 {[%emt 0:02:35]} 6. Be2 {[%emt 0:02:35]} Bxe2 {[%emt 0:13:23]} 7. Ngxe2 {[%emt 0:00:33]} Qc7 {[%emt 0:06:23]} 8. e5 {[%emt 0:02:55]} dxe5 {[%emt 0:02:17]} 9. fxe5 {[%emt 0:01:11]} Nd5 {[%emt 0:00:08]} 10. Ne4 {[%emt 0:23:08]} e6 {[%emt 0:02:04]} 11. O-O {[%emt 0:07:17]} Be7 {[%emt 0:02:21]} 12. c4 {[%emt 0:03:27]} Nb6 {[%emt 0:08:58]} 13. b3 {[%emt 0:02:01]} c5 {[%emt 0:10:11]} 14. Bf4 {[%emt 0:03:47]} cxd4 {[%emt 0:03:57]} 15. Nxd4 {[%emt 0:06:53]} Nc6 {[%emt 0:01:07]} 16. Nb5 {[%emt 0:00:27]} Qd8 {[%emt 0:09:02]} 17. Nbd6+ {[%emt 0:00:54]} Kf8 {[%emt 0:05:28]} 18. Bg3 {[%emt 0:01:03]} f5 {[%emt 0:06:22]} 19. exf6 {[%emt 0:00:44]} gxf6 {[%emt 0:00:55]} 20. Qh5 {[%emt 0:04:17]} Bxd6 {[%emt 0:08:03]} 21. Bxd6+ {[%emt 0:00:14]} Kg7 {[%emt 0:01:50]} 22. Rxf6 {[%emt 0:01:43]} 1-0

[Event "Manhem Chess Week-Elo 2019"]
[Site "Moelnlycke"]
[Date "2019.08.10"]
[Round "1.6"]
[White "Berg, Roy"]
[Black "Johansson, Eva"]
[Result "1/2-1/2"]
[ECO "E11"]
[WhiteElo "1913"]
[BlackElo "1869"]
[Annotator "NA"]
[PlyCount "74"]
[EventDate "2019.08.10"]
[EventType "tourn"]
[EventCountry "SWE"]
[SourceTitle "playchess.com"]
[Source "ChessBase"]
[SourceQuality "1"]
[TimeControl "40/5400+30:1800+30"]

1. d4 {[%emt 0:00:00]} d5 {[%emt 0:00:00]} 2. c4 {[%emt 0:00:00]} e6 {[%emt 0:00:00]} 3. Nf3 {[%emt 0:00:00]} Nf6 {[%emt 0:00:10]} 4. g3 {[%emt 0:00:06]} Bb4+ {[%emt 0:00:56]} 5. Bd2 {[%emt 0:00:30]} Be7 {[%emt 0:01:03]} 6. Bg2 {[%emt 0:00:12]} O-O {[%emt 0:01:19]} 7. O-O {[%emt 0:00:06]} c6 {[%emt 0:01:09]} 8. Qc2 {[%emt 0:04:00]} Nbd7 {[%emt 0:02:46]} 9. b3 {[%emt 0:00:37]} b6 {[%emt 0:05:40]} 10. Rd1 {[%emt 0:01:31]} Bb7 {[%emt 0:04:14]} 11. Nc3 {[%emt 0:01:32]} Rc8 {[%emt 0:03:24]} 12. e4 dxe4 {[%emt 0:01:25]} 13. Ng5 {[%emt 0:15:07]} Re8 {[%emt 0:07:12]} 14. Ngxe4 {[%emt 0:05:19]} Nxe4 {[%emt 0:00:29]} 15. Nxe4 {[%emt 0:01:22]} Nf6 {[%emt 0:01:37]} 16. Bf4 {[%emt 0:03:37]} Nxe4 {[%emt 0:07:24]} 17. Bxe4 {[%emt 0:00:40]} g6 {[%emt 0:00:10]} 18. h4 {[%emt 0:20:15]} Bf6 {[%emt 0:09:47]} 19. Be5 {[%emt 0:06:05]} Qe7 {[%emt 0:04:18]} 20. Rac1 {[%emt 0:04:32]} Bxe5 {[%emt 0:09:23]} 21. dxe5 {[%emt 0:00:08]} c5 {[%emt 0:00:21]} 22. Rd6 {[%emt 0:03:22]} Bxe4 {[%emt 0:09:27]} 23. Qxe4 {[%emt 0:00:11]} Rc7 {[%emt 0:05:59]} 24. Rcd1 {[%emt 0:05:36]} Kg7 {[%emt 0:01:51]} 25. Qd3 {[%emt 0:03:25]} h6 {[%emt 0:05:52]} 26. Kg2 {[%emt 0:08:38]} Rb7 {[%emt 0:04:40]} 27. Rd7 {[%emt 0:03:41]} Rxd7 {[%emt 0:00:25]} 28. Qxd7 {[%emt 0:00:25]} Kf8 {[%emt 0:00:45]} 29. Qc6 {[%emt 0:03:47]} Rd8 {[%emt 0:01:12]} 30. Rd6 {[%emt 0:00:59]} g5 {[%emt 0:04:59]} 31. h5 {[%emt 0:01:22]} Kg7 {[%emt 0:00:38]} 32. a4 {[%emt 0:01:00]} g4 {[%emt 0:01:00]} 33. a5 {[%emt 0:00:24]} bxa5 {[%emt 0:01:15]} 34. Qxc5 {[%emt 0:00:57]} Rb8 {[%emt 0:01:01]} 35. Qc6 {[%emt 0:04:30]} Qg5 {[%emt 0:01:17]} 36. Qe4 {[%emt 0:02:03]} Rxb3 {[%emt 0:00:36]} 37. Qf4 {[%emt 0:00:34]} Rc3 {[%emt 0:01:28]} 1/2-1/2

[Event "Manhem Chess Week-Elo 2019"]
[Site "Moelnlycke"]
[Date "2019.08.10"]
[Round "1.7"]
[White "Bohlin, Jan"]
[Black "Jacobsson, Lennart"]
[Result "1/2-1/2"]
[ECO "A22"]
[WhiteElo "1724"]
[BlackElo "1754"]
[Annotator "NA"]
[PlyCount "81"]
[EventDate "2019.08.10"]
[EventType "tourn"]
[EventCountry "SWE"]
[SourceTitle "playchess.com"]
[Source "ChessBase"]
[SourceQuality "1"]
[TimeControl "40/5400+30:1800+30"]

1. c4 {[%emt 0:00:00]} e5 {[%emt 0:00:00]} 2. g3 {[%emt 0:00:00]} Bc5 {[%emt 0:01:09]} 3. Nc3 {[%emt 0:01:04]} Nf6 {[%emt 0:00:22]} 4. Bg2 {[%emt 0:02:37]} O-O {[%emt 0:00:48]} 5. e3 {[%emt 0:02:30]} d6 {[%emt 0:05:27]} 6. Nge2 {[%emt 0:01:49]} c6 {[%emt 0:03:08]} 7. O-O {[%emt 0:01:01]} Be6 {[%emt 0:01:13]} 8. d4 {[%emt 0:05:56]} Bb6 {[%emt 0:04:27]} 9. b3 {[%emt 0:01:50]} Nbd7 {[%emt 0:07:43]} 10. Ba3 {[%emt 0:05:43]} Bc7 {[%emt 0:12:15]} 11. dxe5 {[%emt 0:14:22]} Nxe5 {[%emt 0:00:09]} 12. Nf4 {[%emt 0:10:28]} Re8 {[%emt 0:00:45]} 13. Nxe6 {[%emt 0:01:06]} Rxe6 {[%emt 0:00:26]} 14. Qc2 {[%emt 0:05:29]} a5 {[%emt 0:09:21]} 15. Bb2 {[%emt 0:05:22]} Qe8 {[%emt 0:07:14]} 16. Rad1 {[%emt 0:02:32]} Re7 {[%emt 0:00:59]} 17. Rd2 {[%emt 0:03:14]} Rd7 {[%emt 0:03:50]} 18. Qf5 {[%emt 0:07:29]} Re7 {[%emt 0:01:00]} 19. Rfd1 {[%emt 0:01:03]} Qd7 {[%emt 0:01:28]} 20. Qxd7 {[%emt 0:01:12]} Rxd7 {[%emt 0:01:45]} 21. h3 {[%emt 0:05:08]} Rad8 {[%emt 0:03:02]} 22. Ne4 {[%emt 0:03:31]} Nxe4 {[%emt 0:02:06]} 23. Bxe4 {[%emt 0:00:07]} Re7 {[%emt 0:01:33]} 24. Bg2 {[%emt 0:00:44]} h6 {[%emt 0:08:44]} 25. c5 {[%emt 0:01:47]} d5 {[%emt 0:08:03]} 26. e4 {[%emt 0:00:53]} d4 {[%emt 0:05:35]} 27. Bxd4 {[%emt 0:03:49]} Rde8 {[%emt 0:02:23]} 28. Bc3 {[%emt 0:03:53]} Kf8 {[%emt 0:01:39]} 29. f4 {[%emt 0:02:12]} Ng6 {[%emt 0:00:05]} 30. Rd7 {[%emt 0:01:50]} Kg8 {[%emt 0:01:01]} 31. e5 {[%emt 0:01:14]} Nf8 {[%emt 0:00:14]} 32. Rxe7 {[%emt 0:00:06]} Rxe7 {[%emt 0:00:00]} 33. h4 {[%emt 0:01:36]} Ne6 {[%emt 0:00:03]} 34. Bb2 {[%emt 0:03:18]} Nxc5 {[%emt 0:00:24]} 35. Ba3 {[%emt 0:00:16]} Bb6 {[%emt 0:02:05]} 36. Kf1 {[%emt 0:00:48]} Rd7 {[%emt 0:02:45]} 37. Rxd7 {[%emt 0:00:29]} Nxd7 {[%emt 0:00:02]} 38. Bh3 {[%emt 0:00:38]} Bc5 {[%emt 0:02:46]} 39. Bxd7 {[%emt 0:01:19]} Bxa3 {[%emt 0:00:06]} 40. Bc8 {[%emt 0:00:32]} b6 {[%emt 0:00:14]} 41. Bb7 {[%emt 0:02:59]} 1/2-1/2

[Event "Manhem Chess Week-Elo 2019"]
[Site "Moelnlycke"]
[Date "2019.08.10"]
[Round "1.8"]
[White "Ziegler, Nathalie"]
[Black "Hattab, Hashim"]
[Result "1-0"]
[ECO "A21"]
[WhiteElo "1846"]
[BlackElo "1868"]
[Annotator "NA"]
[PlyCount "36"]
[EventDate "2019.08.10"]
[EventType "tourn"]
[EventCountry "SWE"]
[SourceTitle "playchess.com"]
[Source "ChessBase"]
[SourceQuality "1"]
[TimeControl "40/5400+30:1800+30"]

1. c4 {[%emt 0:10:09]} e5 {[%emt 0:00:56]} 2. Nc3 {[%emt 0:00:21]} g6 {[%emt 0:01:14]} 3. Nf3 {[%emt 0:04:53]} Bg7 {[%emt 0:00:44]} 4. d4 {[%emt 0:00:13]} exd4 {[%emt 0:01:15]} 5. Nxd4 {[%emt 0:00:11]} Ne7 {[%emt 0:01:43]} 6. Bg5 {[%emt 0:07:42]} a6 {[%emt 0:03:50]} 7. Nd5 {[%emt 0:06:10]} f6 {[%emt 0:01:29]} 8. Nxf6+ {[%emt 0:02:41]} Bxf6 {[%emt 0:00:51]} 9. Bxf6 {[%emt 0:00:07]} O-O {[%emt 0:00:10]} 10. Bg5 {[%emt 0:01:05]} Qe8 {[%emt 0:01:36]} 11. Qd2 {[%emt 0:11:15]} d5 {[%emt 0:04:21]} 12. e3 {[%emt 0:04:43]} c5 {[%emt 0:01:40]} 13. Nb3 {[%emt 0:04:50]} d4 {[%emt 0:02:13]} 14. Nxc5 {[%emt 0:02:46]} Nf5 {[%emt 0:04:10]} 15. g4 {[%emt 0:12:31]} Qc6 {[%emt 0:04:46]} 16. gxf5 {[%emt 0:06:05]} Qxh1 {[%emt 0:06:34]} 17. Qxd4 {[%emt 0:01:28]} Bxf5 {[%emt 0:07:01]} 18. Bh6 {[%emt 0:02:03]} Bc8 {[%emt 0:01:09]} 1-0

[Event "Manhem Chess Week-Elo 2019"]
[Site "Moelnlycke"]
[Date "2019.08.11"]
[Round "2.1"]
[White "Bengtsson, Jonas"]
[Black "Bergre, Joachim"]
[Result "1-0"]
[ECO "A58"]
[WhiteElo "2145"]
[BlackElo "1928"]
[Annotator "NA"]
[PlyCount "57"]
[EventDate "2019.08.10"]
[EventType "tourn"]
[EventCountry "SWE"]
[SourceTitle "playchess.com"]
[Source "ChessBase"]
[SourceQuality "1"]
[TimeControl "40/5400+30:1800+30"]

1. d4 {[%emt 0:00:00]} Nf6 {[%emt 0:00:00]} 2. c4 {[%emt 0:00:00]} c5 {[%emt 0:00:02]} 3. d5 {[%emt 0:00:00]} b5 {[%emt 0:00:23]} 4. cxb5 {[%emt 0:00:00]} a6 {[%emt 0:00:05]} 5. bxa6 {[%emt 0:00:00]} g6 {[%emt 0:00:11]} 6. Nc3 {[%emt 0:00:00]} Bg7 {[%emt 0:00:10]} 7. Nf3 {[%emt 0:00:05]} O-O {[%emt 0:00:25]} 8. g3 {[%emt 0:00:05]} d6 {[%emt 0:03:17]} 9. Bg2 {[%emt 0:00:06]} Bf5 {[%emt 0:03:04]} 10. Nh4 {[%emt 0:03:10]} Bd7 {[%emt 0:02:11]} 11. O-O {[%emt 0:01:39]} Nxa6 {[%emt 0:00:53]} 12. Bd2 {[%emt 0:06:13]} Qb6 {[%emt 0:07:52]} 13. Rb1 {[%emt 0:05:10]} Rfb8 {[%emt 0:05:27]} 14. Re1 {[%emt 0:04:14]} Ng4 {[%emt 0:05:02]} 15. Nf3 {[%emt 0:05:05]} c4 {[%emt 0:03:27]} 16. Rf1 {[%emt 0:04:28]} Nc5 {[%emt 0:03:17]} 17. h3 {[%emt 0:11:34]} Ne5 {[%emt 0:05:21]} 18. Nh4 {[%emt 0:09:29]} Ba4 {[%emt 0:14:53]} 19. Qc1 {[%emt 0:11:41]} Qa7 {[%emt 0:03:36]} 20. Be3 {[%emt 0:02:18]} Qa5 {[%emt 0:04:15]} 21. Qd2 {[%emt 0:05:52]} Na6 {[%emt 0:08:15]} 22. Bd4 {[%emt 0:04:14]} Nb4 {[%emt 0:05:52]} 23. f4 {[%emt 0:01:41]} Nd7 {[%emt 0:01:35]} 24. Bxg7 {[%emt 0:00:09]} Kxg7 {[%emt 0:00:16]} 25. Qd4+ {[%emt 0:00:57]} Nf6 {[%emt 0:01:19]} 26. Kh2 {[%emt 0:06:25]} Qb6 {[%emt 0:04:15]} 27. Qd2 {[%emt 0:05:54]} Ra7 {[%emt 0:05:37]} 28. a3 {[%emt 0:01:19]} Na6 {[%emt 0:00:13]} 29. Nxa4 {[%emt 0:00:07]} 1-0

[Event "Manhem Chess Week-Elo 2019"]
[Site "Moelnlycke"]
[Date "2019.08.11"]
[Round "2.2"]
[White "Moller, Mikael"]
[Black "Rasti, Arvin"]
[Result "1-0"]
[ECO "B12"]
[WhiteElo "1957"]
[BlackElo "2220"]
[Annotator "NA"]
[PlyCount "75"]
[EventDate "2019.08.10"]
[EventType "tourn"]
[EventCountry "SWE"]
[SourceTitle "playchess.com"]
[Source "ChessBase"]
[SourceQuality "1"]
[TimeControl "40/5400+30:1800+30"]

1. e4 {[%emt 0:00:00]} c6 {[%emt 0:00:00]} 2. d4 {[%emt 0:00:00]} d5 {[%emt 0:00:00]} 3. f3 {[%emt 0:00:00]} dxe4 {[%emt 0:00:00]} 4. fxe4 {[%emt 0:00:00]} e5 {[%emt 0:00:10]} 5. Nf3 {[%emt 0:00:00]} exd4 {[%emt 0:05:32]} 6. Qxd4 {[%emt 0:00:01]} Qxd4 {[%emt 0:00:39]} 7. Nxd4 {[%emt 0:00:48]} Bc5 {[%emt 0:02:16]} 8. Nb3 {[%emt 0:00:09]} Bb6 {[%emt 0:01:15]} 9. Nc3 {[%emt 0:00:10]} Be6 {[%emt 0:01:27]} 10. Na4 {[%emt 0:06:51]} Nd7 {[%emt 0:06:59]} 11. Nxb6 {[%emt 0:00:09]} axb6 {[%emt 0:00:09]} 12. Nd4 {[%emt 0:03:54]} Ngf6 {[%emt 0:04:05]} 13. Nxe6 {[%emt 0:02:41]} fxe6 {[%emt 0:00:22]} 14. Bd3 {[%emt 0:00:24]} Nc5 {[%emt 0:07:54]} 15. Be3 {[%emt 0:03:33]} O-O {[%emt 0:08:33]} 16. a3 {[%emt 0:06:38]} e5 {[%emt 0:09:51]} 17. O-O {[%emt 0:03:37]} Rad8 {[%emt 0:12:37]} 18. Rad1 {[%emt 0:00:50]} Kh8 {[%emt 0:10:07]} 19. Bg5 {[%emt 0:17:24]} Ne6 {[%emt 0:03:14]} 20. Be3 {[%emt 0:02:00]} b5 {[%emt 0:04:14]} 21. Rf5 {[%emt 0:05:20]} Nd7 {[%emt 0:04:25]} 22. Be2 {[%emt 0:03:59]} Rf6 {[%emt 0:03:23]} 23. Bg4 {[%emt 0:03:54]} g6 {[%emt 0:02:31]} 24. Rf2 {[%emt 0:06:04]} Rxf2 {[%emt 0:01:35]} 25. Bxe6 {[%emt 0:03:51]} Rxc2 {[%emt 0:00:43]} 26. Bg5 {[%emt 0:00:43]} Re8 {[%emt 0:02:55]} 27. Bxd7 {[%emt 0:00:28]} Rf8 {[%emt 0:00:08]} 28. Bh6 {[%emt 0:05:44]} Rd8 {[%emt 0:01:29]} 29. Rf1 {[%emt 0:02:02]} Rxb2 {[%emt 0:01:16]} 30. Rf7 {[%emt 0:00:17]} Rb1+ {[%emt 0:00:13]} 31. Kf2 {[%emt 0:00:07]} Rd1 {[%emt 0:02:25]} 32. Be6 {[%emt 0:04:29]} R1d6 {[%emt 0:01:59]} 33. Re7 {[%emt 0:05:50]} Rxe6 {[%emt 0:02:34]} 34. Rxe6 {[%emt 0:00:15]} Ra8 {[%emt 0:00:04]} 35. Rxe5 {[%emt 0:00:35]} Kg8 {[%emt 0:00:05]} 36. Re7 {[%emt 0:00:38]} Rxa3 {[%emt 0:00:33]} 37. Rg7+ {[%emt 0:00:15]} Kh8 {[%emt 0:00:05]} 38. Rxb7 {[%emt 0:00:16]} 1-0

[Event "Manhem Chess Week-Elo 2019"]
[Site "Moelnlycke"]
[Date "2019.08.11"]
[Round "2.3"]
[White "Berggren Torell, Harald"]
[Black "Bergenwall, Henric"]
[Result "1/2-1/2"]
[ECO "C41"]
[WhiteElo "2137"]
[BlackElo "1933"]
[Annotator "NA"]
[PlyCount "21"]
[EventDate "2019.08.10"]
[EventType "tourn"]
[EventCountry "SWE"]
[SourceTitle "playchess.com"]
[Source "ChessBase"]
[SourceQuality "1"]
[TimeControl "40/5400+30:1800+30"]

1. e4 {[%emt 0:01:43]} d6 {[%emt 0:00:15]} 2. d4 {[%emt 0:00:10]} Nf6 {[%emt 0:00:26]} 3. Nc3 {[%emt 0:00:02]} e5 {[%emt 0:00:44]} 4. Nf3 {[%emt 0:00:30]} exd4 {[%emt 0:00:34]} 5. Nxd4 {[%emt 0:00:12]} Be7 {[%emt 0:00:30]} 6. Be2 {[%emt 0:00:35]} O-O {[%emt 0:01:34]} 7. Bf4 {[%emt 0:02:13]} c6 {[%emt 0:07:50]} 8. Qd2 {[%emt 0:02:37]} d5 {[%emt 0:16:54]} 9. exd5 {[%emt 0:03:03]} Nxd5 {[%emt 0:00:23]} 10. Nxd5 {[%emt 0:00:18]} Qxd5 {[%emt 0:00:10]} 11. O-O {[%emt 0:22:31]} 1/2-1/2

[Event "Manhem Chess Week-Elo 2019"]
[Site "Moelnlycke"]
[Date "2019.08.11"]
[Round "2.4"]
[White "Fransson, Lennart"]
[Black "Olsson, William"]
[Result "0-1"]
[ECO "A13"]
[WhiteElo "2014"]
[BlackElo "2113"]
[Annotator "NA"]
[PlyCount "78"]
[EventDate "2019.08.10"]
[EventType "tourn"]
[EventCountry "SWE"]
[SourceTitle "playchess.com"]
[Source "ChessBase"]
[SourceQuality "1"]
[TimeControl "40/5400+30:1800+30"]

1. c4 {[%emt 0:00:00]} e6 {[%emt 0:00:00]} 2. g3 {[%emt 0:00:00]} Nf6 {[%emt 0:00:00]} 3. Bg2 {[%emt 0:00:00]} d5 {[%emt 0:00:00]} 4. Nf3 {[%emt 0:00:30]} c6 {[%emt 0:00:00]} 5. O-O {[%emt 0:00:55]} Be7 {[%emt 0:02:06]} 6. Qc2 {[%emt 0:05:53]} O-O {[%emt 0:00:26]} 7. b3 {[%emt 0:00:10]} b6 {[%emt 0:01:15]} 8. Bb2 {[%emt 0:00:07]} Bb7 {[%emt 0:00:07]} 9. d3 {[%emt 0:00:22]} c5 {[%emt 0:02:22]} 10. Nbd2 {[%emt 0:06:47]} Nbd7 {[%emt 0:00:59]} 11. Rad1 {[%emt 0:06:04]} Qc7 {[%emt 0:02:58]} 12. cxd5 {[%emt 0:01:03]} exd5 {[%emt 0:05:40]} 13. b4 {[%emt 0:04:06]} Rac8 {[%emt 0:04:38]} 14. Rc1 {[%emt 0:04:17]} Qb8 {[%emt 0:04:34]} 15. bxc5 {[%emt 0:01:16]} bxc5 {[%emt 0:00:25]} 16. Nh4 {[%emt 0:05:25]} Rfe8 {[%emt 0:02:12]} 17. Qb1 {[%emt 0:01:48]} Bd8 {[%emt 0:05:08]} 18. e4 {[%emt 0:03:31]} Ba6 {[%emt 0:22:09]} 19. exd5 {[%emt 0:06:27]} Re2 {[%emt 0:08:10]} 20. Rfd1 {[%emt 0:04:32]} Nb6 {[%emt 0:06:42]} 21. Bf1 {[%emt 0:08:07]} Re8 {[%emt 0:00:42]} 22. Bh3 {[%emt 0:01:01]} Rc7 {[%emt 0:01:51]} 23. d6 {[%emt 0:01:08]} Rb7 {[%emt 0:00:27]} 24. Nf5 {[%emt 0:07:46]} Na4 {[%emt 0:11:01]} 25. Nb3 {[%emt 0:01:29]} Rb6 {[%emt 0:03:18]} 26. Ba3 {[%emt 0:04:03]} Bc8 {[%emt 0:03:50]} 27. d4 {[%emt 0:03:33]} Bxf5 {[%emt 0:02:11]} 28. Qxf5 {[%emt 0:01:59]} Rxd6 {[%emt 0:00:29]} 29. Nxc5 {[%emt 0:05:15]} Nxc5 {[%emt 0:00:34]} 30. dxc5 {[%emt 0:01:26]} Ra6 {[%emt 0:00:43]} 31. Qd3 {[%emt 0:00:47]} Ra5 {[%emt 0:01:09]} 32. Re1 {[%emt 0:03:29]} Bc7 {[%emt 0:00:55]} 33. Rxe8+ {[%emt 0:03:27]} Qxe8 {[%emt 0:00:16]} 34. Qb3 {[%emt 0:04:59]} Qc6 {[%emt 0:04:55]} 35. Rd1 {[%emt 0:01:04]} h6 {[%emt 0:00:41]} 36. Bb4 {[%emt 0:00:51]} Rb5 {[%emt 0:01:06]} 37. a4 {[%emt 0:01:50]} Rb8 {[%emt 0:00:50]} 38. Bg2 {[%emt 0:00:31]} Qe8 {[%emt 0:00:34]} 39. Re1 {[%emt 0:01:07]} Qxe1+ {[%emt 0:00:06]} 0-1